[Event "Titled Tuesday Blitz July 20 2021"]
[White "Grochal, Joey"]
[Black "Makhnev, Denis"]
[WhiteFideId "1019945"]
[BlackFideId "13707647"]
[WhiteElo "2265"]
[BlackElo "2537"]
[Result "1-0"]
[Round "01"]
[TimeControl "180+1"]
[Date "2021.07.20"]
[WhiteClock "0:00:36"]
[BlackClock "0:01:34"]

1. d4 {[%clk 0:03:00]}  Nf6 {[%clk 0:02:59]} 2. c4 {[%clk 0:03:00]}  e6 {[%clk 0:02:59]} 3. Nf3 {[%clk 0:03:00]}  d5 {[%clk 0:02:58]} 4. Nc3 {[%clk 0:02:59]}  c6 {[%clk 0:02:57]} 5. Bg5 {[%clk 0:02:59]}  Nbd7 {[%clk 0:02:55]} 6. e3 {[%clk 0:02:59]}  h6 {[%clk 0:02:55]} 7. Bxf6 {[%clk 0:02:57]}  Nxf6 {[%clk 0:02:54]} 8. Rc1 {[%clk 0:02:58]}  Bd6 {[%clk 0:02:50]} 9. Qc2 {[%clk 0:02:57]}  O-O {[%clk 0:02:50]} 10. Bd3 {[%clk 0:02:56]}  Qe7 {[%clk 0:02:50]} 11. O-O {[%clk 0:02:56]}  dxc4 {[%clk 0:02:42]} 12. Bxc4 {[%clk 0:02:55]}  e5 {[%clk 0:02:42]} 13. dxe5 {[%clk 0:02:42]}  Bxe5 {[%clk 0:02:42]} 14. Nxe5 {[%clk 0:02:43]}  Qxe5 {[%clk 0:02:43]} 15. Rfd1 {[%clk 0:02:43]}  Bg4 {[%clk 0:02:42]} 16. Rd4 {[%clk 0:02:39]}  Rad8 {[%clk 0:02:42]} 17. Qd2 {[%clk 0:02:36]}  Rxd4 {[%clk 0:02:42]} 18. exd4 {[%clk 0:02:36]}  Qd6 {[%clk 0:02:40]} 19. h3 {[%clk 0:02:35]}  Bf5 {[%clk 0:02:39]} 20. d5 {[%clk 0:02:31]}  Rd8 {[%clk 0:02:37]} 21. Rd1 {[%clk 0:02:30]}  b5 {[%clk 0:02:37]} 22. Bb3 {[%clk 0:02:29]}  b4 {[%clk 0:02:36]} 23. Ne2 {[%clk 0:02:26]}  cxd5 {[%clk 0:02:33]} 24. Qd4 {[%clk 0:02:19]}  a5 {[%clk 0:02:29]} 25. Nf4 {[%clk 0:02:16]}  Be6 {[%clk 0:02:29]} 26. Rc1 {[%clk 0:02:11]}  Ne4 {[%clk 0:02:24]} 27. Nd3 {[%clk 0:01:57]}  Qe7 {[%clk 0:02:06]} 28. Ne5 {[%clk 0:01:40]}  Bxh3 {[%clk 0:02:01]} 29. Bxd5 {[%clk 0:01:22]}  Rxd5 {[%clk 0:02:01]} 30. Qxd5 {[%clk 0:01:17]}  Qg5 {[%clk 0:02:01]} 31. Qa8+ {[%clk 0:01:09]}  Kh7 {[%clk 0:01:59]} 32. Qxe4+ {[%clk 0:01:09]}  f5 {[%clk 0:01:59]} 33. f4 {[%clk 0:01:00]}  Qd8 {[%clk 0:01:38]} 34. Qe3 {[%clk 0:00:56]}  Bg4 {[%clk 0:01:33]} 35. Nxg4 {[%clk 0:00:54]}  fxg4 {[%clk 0:01:34]} 36. Qe4+ {[%clk 0:00:52]}  Kh8 {[%clk 0:01:33]} 37. Re1 {[%clk 0:00:51]}  Qb6+ {[%clk 0:01:33]} 38. Qe3 {[%clk 0:00:49]}  Qd6 {[%clk 0:01:34]} 39. Qe8+ {[%clk 0:00:43]}  Kh7 {[%clk 0:01:34]} 40. f5 {[%clk 0:00:38]}  Qd4+ {[%clk 0:01:33]} 41. Kh1 {[%clk 0:00:36]}  g3 {[%clk 0:01:34]} 42. Qg6+ {[%clk 0:00:36]} 1-0


[Site "https://www.chess.com"]

[Event "Titled Tuesday Blitz July 20 2021"]
[White "Guimaraes, Wagner Peixoto"]
[Black "Noritsyn, Nikolay"]
[WhiteFideId "2100940"]
[BlackFideId "2604922"]
[WhiteElo "2245"]
[BlackElo "2527"]
[Result "0-1"]
[Round "01"]
[TimeControl "180+1"]
[Date "2021.07.21"]
[WhiteClock "0:00:02"]
[BlackClock "0:00:35"]

1. c4 {[%clk 0:02:49]}  b6 {[%clk 0:02:56]} 2. Nf3 {[%clk 0:02:43]}  Bb7 {[%clk 0:02:56]} 3. g3 {[%clk 0:02:43]}  e6 {[%clk 0:02:52]} 4. Bg2 {[%clk 0:02:43]}  Nf6 {[%clk 0:02:52]} 5. O-O {[%clk 0:02:41]}  g6 {[%clk 0:02:52]} 6. Nc3 {[%clk 0:02:35]}  Bg7 {[%clk 0:02:52]} 7. d3 {[%clk 0:02:30]}  O-O {[%clk 0:02:51]} 8. e4 {[%clk 0:02:29]}  d6 {[%clk 0:02:49]} 9. Nh4 {[%clk 0:02:25]}  e5 {[%clk 0:02:27]} 10. f4 {[%clk 0:02:14]}  exf4 {[%clk 0:02:25]} 11. e5 {[%clk 0:02:04]}  Bxg2 {[%clk 0:02:17]} 12. exf6 {[%clk 0:02:04]}  Bxf1 {[%clk 0:02:04]} 13. fxg7 {[%clk 0:02:02]}  Re8 {[%clk 0:02:02]} 14. Qxf1 {[%clk 0:01:57]}  fxg3 {[%clk 0:02:02]} 15. hxg3 {[%clk 0:01:57]}  Nd7 {[%clk 0:01:58]} 16. Bh6 {[%clk 0:01:41]}  f5 {[%clk 0:01:52]} 17. Nd5 {[%clk 0:01:27]}  c6 {[%clk 0:01:50]} 18. Nf4 {[%clk 0:01:26]}  Qf6 {[%clk 0:01:43]} 19. Qf3 {[%clk 0:01:15]}  Ne5 {[%clk 0:01:41]} 20. Qg2 {[%clk 0:00:57]}  Ng4 {[%clk 0:01:40]} 21. Qxc6 {[%clk 0:00:43]}  Nxh6 {[%clk 0:01:38]} 22. Nd5 {[%clk 0:00:28]}  Qxb2 {[%clk 0:01:30]} 23. Rf1 {[%clk 0:00:21]}  Ng4 {[%clk 0:01:27]} 24. Ng2 {[%clk 0:00:15]}  Qd4+ {[%clk 0:01:26]} 25. Kh1 {[%clk 0:00:14]}  Qxg7 {[%clk 0:01:25]} 26. Nc7 {[%clk 0:00:13]}  Rac8 {[%clk 0:01:16]} 27. Qd5+ {[%clk 0:00:12]}  Qf7 {[%clk 0:01:16]} 28. Nxe8 {[%clk 0:00:11]}  Qxd5 {[%clk 0:01:08]} 29. cxd5 {[%clk 0:00:12]}  Rxe8 {[%clk 0:01:08]} 30. Nf4 {[%clk 0:00:11]}  Re5 {[%clk 0:00:52]} 31. Rc1 {[%clk 0:00:10]}  g5 {[%clk 0:00:51]} 32. Rc8+ {[%clk 0:00:10]}  Kf7 {[%clk 0:00:49]} 33. Rc7+ {[%clk 0:00:10]}  Re7 {[%clk 0:00:49]} 34. Ne6 {[%clk 0:00:06]}  Rxc7 {[%clk 0:00:48]} 35. Nxc7 {[%clk 0:00:07]}  Nf2+ {[%clk 0:00:48]} 36. Kg2 {[%clk 0:00:06]}  Nxd3 {[%clk 0:00:49]} 37. Nb5 {[%clk 0:00:06]}  Ke7 {[%clk 0:00:47]} 38. Nxa7 {[%clk 0:00:06]}  Nb4 {[%clk 0:00:45]} 39. Nc8+ {[%clk 0:00:05]}  Kf6 {[%clk 0:00:38]} 40. Nxb6 {[%clk 0:00:06]}  Nxa2 {[%clk 0:00:37]} 41. Nc4 {[%clk 0:00:05]}  Ke7 {[%clk 0:00:36]} 42. Nb6 {[%clk 0:00:03]}  Nb4 {[%clk 0:00:35]} 43. Kf3 {[%clk 0:00:02]}  h5 {[%clk 0:00:35]} 0-1


[Site "https://www.chess.com"]

[Event "Titled Tuesday Blitz July 20 2021"]
[White "Hamley, Ryan"]
[Black "Karthikeyan, Murali"]
[WhiteFideId "30959497"]
[BlackFideId "5074452"]
[WhiteElo "2393"]
[BlackElo "2564"]
[Result "0-1"]
[Round "01"]
[TimeControl "180+1"]
[Date "2021.07.21"]
[WhiteClock "0:00:08"]
[BlackClock "0:00:05"]

1. d4 {[%clk 0:02:53]}  Nf6 {[%clk 0:02:58]} 2. Nf3 {[%clk 0:02:53]}  g6 {[%clk 0:02:56]} 3. Nbd2 {[%clk 0:02:53]}  d5 {[%clk 0:02:55]} 4. b4 {[%clk 0:02:52]}  Bg7 {[%clk 0:02:54]} 5. e3 {[%clk 0:02:52]}  O-O {[%clk 0:02:54]} 6. c4 {[%clk 0:02:52]}  a5 {[%clk 0:02:54]} 7. b5 {[%clk 0:02:50]}  c5 {[%clk 0:02:53]} 8. Bb2 {[%clk 0:02:44]}  Nbd7 {[%clk 0:02:48]} 9. Be2 {[%clk 0:02:41]}  b6 {[%clk 0:02:39]} 10. O-O {[%clk 0:02:37]}  Bb7 {[%clk 0:02:39]} 11. Rc1 {[%clk 0:02:32]}  Rc8 {[%clk 0:02:21]} 12. Qb3 {[%clk 0:02:24]}  cxd4 {[%clk 0:02:15]} 13. Bxd4 {[%clk 0:02:13]}  Nc5 {[%clk 0:02:01]} 14. Qb2 {[%clk 0:02:10]}  Ne6 {[%clk 0:01:22]} 15. Be5 {[%clk 0:02:02]}  Ne4 {[%clk 0:01:04]} 16. Bxg7 {[%clk 0:01:51]}  Nxg7 {[%clk 0:01:05]} 17. Rfd1 {[%clk 0:01:42]}  Nd6 {[%clk 0:00:32]} 18. Ne5 {[%clk 0:01:31]}  h5 {[%clk 0:00:14]} 19. Bf3 {[%clk 0:01:30]}  Ba8 {[%clk 0:00:10]} 20. h3 {[%clk 0:01:23]}  dxc4 {[%clk 0:00:04]} 21. Bxa8 {[%clk 0:01:19]}  c3 {[%clk 0:00:04]} 22. Rxc3 {[%clk 0:01:12]}  Rxc3 {[%clk 0:00:05]} 23. Qxc3 {[%clk 0:01:13]}  Qxa8 {[%clk 0:00:06]} 24. Nc6 {[%clk 0:01:11]}  Nxb5 {[%clk 0:00:05]} 25. Nxe7+ {[%clk 0:01:11]}  Kh7 {[%clk 0:00:06]} 26. Qe5 {[%clk 0:01:06]}  Qe8 {[%clk 0:00:05]} 27. Nc4 {[%clk 0:01:03]}  Na7 {[%clk 0:00:03]} 28. Nd5 {[%clk 0:01:00]}  Qxe5 {[%clk 0:00:03]} 29. Nxe5 {[%clk 0:01:01]}  b5 {[%clk 0:00:03]} 30. Rc1 {[%clk 0:00:57]}  f6 {[%clk 0:00:02]} 31. Nd7 {[%clk 0:00:56]}  Rf7 {[%clk 0:00:03]} 32. N7xf6+ {[%clk 0:00:56]}  Kh6 {[%clk 0:00:03]} 33. Ne4 {[%clk 0:00:53]}  Ne6 {[%clk 0:00:03]} 34. f3 {[%clk 0:00:51]}  b4 {[%clk 0:00:03]} 35. Kf2 {[%clk 0:00:51]}  Kg7 {[%clk 0:00:03]} 36. Rc4 {[%clk 0:00:45]}  Rd7 {[%clk 0:00:03]} 37. Nef6 {[%clk 0:00:39]}  Rb7 {[%clk 0:00:02]} 38. e4 {[%clk 0:00:39]}  Nb5 {[%clk 0:00:02]} 39. Rc8 {[%clk 0:00:36]}  Nc3 {[%clk 0:00:01]} 40. Rg8+ {[%clk 0:00:34]}  Kf7 {[%clk 0:00:01]} 41. Rh8 {[%clk 0:00:32]}  Nxa2 {[%clk 0:00:02]} 42. Rh7+ {[%clk 0:00:32]}  Ng7 {[%clk 0:00:02]} 43. e5 {[%clk 0:00:13]}  b3 {[%clk 0:00:02]} 44. Nf4 {[%clk 0:00:12]}  b2 {[%clk 0:00:03]} 45. Ne4 {[%clk 0:00:12]}  b1=Q {[%clk 0:00:02]} 46. e6+ {[%clk 0:00:12]}  Kg8 {[%clk 0:00:02]} 47. Nf6+ {[%clk 0:00:12]}  Kf8 {[%clk 0:00:03]} 48. Rh8+ {[%clk 0:00:08]}  Ke7 {[%clk 0:00:03]} 49. Ng8+ {[%clk 0:00:06]}  Kd6 {[%clk 0:00:03]} 50. e7 {[%clk 0:00:07]}  Qb2+ {[%clk 0:00:03]} 51. Kg3 {[%clk 0:00:07]}  Rxe7 {[%clk 0:00:04]} 52. Nxe7 {[%clk 0:00:07]}  Kxe7 {[%clk 0:00:05]} 53. Nxg6+ {[%clk 0:00:07]}  Kf7 {[%clk 0:00:05]} 54. Nf4 {[%clk 0:00:08]}  Nf5+ {[%clk 0:00:05]} 0-1


[Site "https://www.chess.com"]

[Event "Titled Tuesday Blitz July 20 2021"]
[White "Howell, David W L"]
[Black "Jary, Sergey"]
[WhiteFideId "410608"]
[BlackFideId "14110350"]
[WhiteElo "2643"]
[BlackElo "2260"]
[Result "1-0"]
[Round "01"]
[TimeControl "180+1"]
[Date "2021.07.20"]
[WhiteClock "0:00:06"]
[BlackClock "0:00:07"]

1. b3 {[%clk 0:02:50]}  d5 {[%clk 0:02:17]} 2. Bb2 {[%clk 0:02:51]}  c6 {[%clk 0:02:12]} 3. e3 {[%clk 0:02:48]}  Nf6 {[%clk 0:02:11]} 4. c4 {[%clk 0:02:41]}  Bf5 {[%clk 0:02:08]} 5. Nc3 {[%clk 0:02:41]}  e6 {[%clk 0:02:06]} 6. Nf3 {[%clk 0:02:39]}  Nbd7 {[%clk 0:02:06]} 7. Nh4 {[%clk 0:02:38]}  Bg6 {[%clk 0:02:03]} 8. d4 {[%clk 0:02:34]}  Be7 {[%clk 0:02:02]} 9. Nxg6 {[%clk 0:02:26]}  hxg6 {[%clk 0:01:59]} 10. g3 {[%clk 0:02:27]}  a6 {[%clk 0:01:55]} 11. Rc1 {[%clk 0:02:22]}  b5 {[%clk 0:01:54]} 12. c5 {[%clk 0:02:11]}  Qc7 {[%clk 0:01:47]} 13. b4 {[%clk 0:02:08]}  e5 {[%clk 0:01:46]} 14. Bg2 {[%clk 0:01:58]}  g5 {[%clk 0:01:40]} 15. O-O {[%clk 0:01:31]}  e4 {[%clk 0:01:38]} 16. f3 {[%clk 0:01:31]}  exf3 {[%clk 0:01:36]} 17. Qxf3 {[%clk 0:01:31]}  g4 {[%clk 0:01:33]} 18. Qf4 {[%clk 0:01:25]}  Qxf4 {[%clk 0:01:32]} 19. Rxf4 {[%clk 0:01:25]}  Nf8 {[%clk 0:01:30]} 20. e4 {[%clk 0:01:10]}  Ne6 {[%clk 0:01:22]} 21. Rf2 {[%clk 0:01:02]}  dxe4 {[%clk 0:01:11]} 22. Nxe4 {[%clk 0:01:02]}  Nd5 {[%clk 0:01:07]} 23. Nc3 {[%clk 0:00:57]}  Nec7 {[%clk 0:00:58]} 24. Re1 {[%clk 0:00:47]}  Kf8 {[%clk 0:00:54]} 25. Nxd5 {[%clk 0:00:41]}  cxd5 {[%clk 0:00:52]} 26. Rf4 {[%clk 0:00:35]}  g5 {[%clk 0:00:45]} 27. Rf5 {[%clk 0:00:31]}  Rd8 {[%clk 0:00:42]} 28. Bc1 {[%clk 0:00:22]}  Rg8 {[%clk 0:00:41]} 29. Rxe7 {[%clk 0:00:16]}  Kxe7 {[%clk 0:00:40]} 30. Bxg5+ {[%clk 0:00:17]}  Rxg5 {[%clk 0:00:30]} 31. Rxg5 {[%clk 0:00:18]}  Ne6 {[%clk 0:00:29]} 32. Rxd5 {[%clk 0:00:14]}  Rxd5 {[%clk 0:00:28]} 33. Bxd5 {[%clk 0:00:15]}  Nxd4 {[%clk 0:00:28]} 34. Be4 {[%clk 0:00:12]}  f5 {[%clk 0:00:26]} 35. Bb7 {[%clk 0:00:07]}  Kd7 {[%clk 0:00:23]} 36. Bxa6 {[%clk 0:00:06]}  Kc6 {[%clk 0:00:23]} 37. Kf2 {[%clk 0:00:05]}  Nc2 {[%clk 0:00:22]} 38. Bc8 {[%clk 0:00:05]}  Nxb4 {[%clk 0:00:21]} 39. Bxf5 {[%clk 0:00:06]}  Nxa2 {[%clk 0:00:20]} 40. Bxg4 {[%clk 0:00:06]}  Kxc5 {[%clk 0:00:20]} 41. Be6 {[%clk 0:00:06]}  Nb4 {[%clk 0:00:18]} 42. Ke3 {[%clk 0:00:06]}  Nc6 {[%clk 0:00:18]} 43. h4 {[%clk 0:00:05]}  Kd6 {[%clk 0:00:18]} 44. Ba2 {[%clk 0:00:04]}  Ne5 {[%clk 0:00:18]} 45. Ke4 {[%clk 0:00:04]}  b4 {[%clk 0:00:18]} 46. Bb3 {[%clk 0:00:04]}  Nd7 {[%clk 0:00:17]} 47. Kd4 {[%clk 0:00:03]}  Nc5 {[%clk 0:00:17]} 48. Bd1 {[%clk 0:00:02]}  b3 {[%clk 0:00:17]} 49. g4 {[%clk 0:00:02]}  b2 {[%clk 0:00:17]} 50. Bc2 {[%clk 0:00:02]}  Ne6+ {[%clk 0:00:16]} 51. Kc3 {[%clk 0:00:02]}  Nf4 {[%clk 0:00:15]} 52. Kxb2 {[%clk 0:00:02]}  Ke5 {[%clk 0:00:14]} 53. Kc3 {[%clk 0:00:02]}  Kf6 {[%clk 0:00:14]} 54. Kd4 {[%clk 0:00:01]}  Ne6+ {[%clk 0:00:13]} 55. Ke4 {[%clk 0:00:02]}  Nc5+ {[%clk 0:00:13]} 56. Kf4 {[%clk 0:00:02]}  Ne6+ {[%clk 0:00:13]} 57. Kg3 {[%clk 0:00:03]}  Nd4 {[%clk 0:00:13]} 58. Be4 {[%clk 0:00:04]}  Ne6 {[%clk 0:00:12]} 59. Bd3 {[%clk 0:00:04]}  Nc5 {[%clk 0:00:12]} 60. g5+ {[%clk 0:00:03]}  Kg7 {[%clk 0:00:12]} 61. Bc2 {[%clk 0:00:04]}  Ne6 {[%clk 0:00:10]} 62. Kg4 {[%clk 0:00:05]}  Nf8 {[%clk 0:00:10]} 63. Bf5 {[%clk 0:00:05]}  Kf7 {[%clk 0:00:09]} 64. Kf4 {[%clk 0:00:05]}  Ke7 {[%clk 0:00:09]} 65. Ke5 {[%clk 0:00:06]}  Kf7 {[%clk 0:00:09]} 66. h5 {[%clk 0:00:06]}  Kg7 {[%clk 0:00:09]} 67. Kd6 {[%clk 0:00:07]}  Kf7 {[%clk 0:00:09]} 68. h6 {[%clk 0:00:07]}  Kg8 {[%clk 0:00:09]} 69. Ke7 {[%clk 0:00:07]}  Kh8 {[%clk 0:00:08]} 70. Kf7 {[%clk 0:00:05]}  Ng6 {[%clk 0:00:06]} 71. Kxg6 {[%clk 0:00:06]}  Kg8 {[%clk 0:00:07]} 72. Kf6 {[%clk 0:00:05]}  Kh8 {[%clk 0:00:07]} 73. g6 {[%clk 0:00:06]} 1-0


[Site "https://www.chess.com"]

[Event "Titled Tuesday Blitz July 20 2021"]
[White "Kashtanov, Ruslan"]
[Black "Petriashvili, Nikoloz"]
[WhiteFideId "4124871"]
[BlackFideId "13611216"]
[WhiteElo "2408"]
[BlackElo "2767"]
[Result "0-1"]
[Round "01"]
[TimeControl "180+1"]
[Date "2021.07.21"]
[WhiteClock "0:00:03"]
[BlackClock "0:00:14"]

1. d4 {[%clk 0:02:58]}  c6 {[%clk 0:03:00]} 2. c4 {[%clk 0:02:58]}  d5 {[%clk 0:03:01]} 3. Nf3 {[%clk 0:02:49]}  Nf6 {[%clk 0:03:01]} 4. Nbd2 {[%clk 0:02:50]}  Bf5 {[%clk 0:02:59]} 5. Nh4 {[%clk 0:02:49]}  Bg6 {[%clk 0:02:55]} 6. Qb3 {[%clk 0:02:47]}  Qb6 {[%clk 0:02:54]} 7. Qh3 {[%clk 0:02:46]}  Qd8 {[%clk 0:02:52]} 8. Nxg6 {[%clk 0:02:46]}  fxg6 {[%clk 0:02:53]} 9. e3 {[%clk 0:02:33]}  Qd7 {[%clk 0:02:53]} 10. Qg3 {[%clk 0:02:26]}  e6 {[%clk 0:02:43]} 11. Bd3 {[%clk 0:02:24]}  Bd6 {[%clk 0:02:42]} 12. f4 {[%clk 0:02:17]}  O-O {[%clk 0:02:42]} 13. O-O {[%clk 0:02:17]}  Qe7 {[%clk 0:02:38]} 14. Nf3 {[%clk 0:02:04]}  Nbd7 {[%clk 0:02:36]} 15. c5 {[%clk 0:01:59]}  Bc7 {[%clk 0:02:31]} 16. Bd2 {[%clk 0:01:59]}  b5 {[%clk 0:02:31]} 17. a4 {[%clk 0:01:55]}  a6 {[%clk 0:02:31]} 18. b4 {[%clk 0:01:55]}  Ne4 {[%clk 0:02:24]} 19. Qe1 {[%clk 0:01:19]}  Ndf6 {[%clk 0:02:22]} 20. Ra2 {[%clk 0:01:14]}  h6 {[%clk 0:02:21]} 21. Qa1 {[%clk 0:01:11]}  Rab8 {[%clk 0:02:17]} 22. axb5 {[%clk 0:01:11]}  axb5 {[%clk 0:02:17]} 23. Ra7 {[%clk 0:01:09]}  Qd8 {[%clk 0:02:16]} 24. Qa2 {[%clk 0:01:03]}  g5 {[%clk 0:02:16]} 25. Ne5 {[%clk 0:00:54]}  gxf4 {[%clk 0:02:12]} 26. Nxc6 {[%clk 0:00:52]}  Qd7 {[%clk 0:02:02]} 27. Ne5 {[%clk 0:00:48]}  Qd8 {[%clk 0:01:58]} 28. exf4 {[%clk 0:00:48]}  Bxe5 {[%clk 0:01:55]} 29. fxe5 {[%clk 0:00:47]}  Ng4 {[%clk 0:01:50]} 30. Bxe4 {[%clk 0:00:34]}  Qh4 {[%clk 0:01:40]} 31. Rxg7+ {[%clk 0:00:28]}  Kh8 {[%clk 0:01:26]} 32. Rh7+ {[%clk 0:00:18]}  Kg8 {[%clk 0:01:25]} 33. Rg7+ {[%clk 0:00:18]}  Kh8 {[%clk 0:01:25]} 34. Rxg4 {[%clk 0:00:19]}  Qxg4 {[%clk 0:01:18]} 35. Bf3 {[%clk 0:00:17]}  Qxd4+ {[%clk 0:01:18]} 36. Kh1 {[%clk 0:00:17]}  Ra8 {[%clk 0:00:59]} 37. Qc2 {[%clk 0:00:17]}  Qc4 {[%clk 0:01:00]} 38. Qb1 {[%clk 0:00:15]}  Kg7 {[%clk 0:00:37]} 39. Re1 {[%clk 0:00:12]}  Ra2 {[%clk 0:00:35]} 40. Be3 {[%clk 0:00:09]}  d4 {[%clk 0:00:28]} 41. Bh5 {[%clk 0:00:08]}  d3 {[%clk 0:00:24]} 42. Qd1 {[%clk 0:00:04]}  Rf5 {[%clk 0:00:20]} 43. Bg4 {[%clk 0:00:03]}  Rxe5 {[%clk 0:00:18]} 44. Bxh6+ {[%clk 0:00:04]}  Kxh6 {[%clk 0:00:15]} 45. Rxe5 {[%clk 0:00:03]}  Qxg4 {[%clk 0:00:14]} 0-1


[Site "https://www.chess.com"]

[Event "Titled Tuesday Blitz July 20 2021"]
[White "Koridze, Lile"]
[Black "Bartel, Mateusz"]
[WhiteFideId "13612514"]
[BlackFideId "1112635"]
[WhiteElo "2400"]
[BlackElo "2733"]
[Result "1-0"]
[Round "01"]
[TimeControl "180+1"]
[Date "2021.07.21"]
[WhiteClock "0:00:16"]
[BlackClock "0:00:10"]

1. d4 {[%clk 0:03:00]}  Nf6 {[%clk 0:02:57]} 2. c4 {[%clk 0:03:00]}  b6 {[%clk 0:02:55]} 3. f3 {[%clk 0:02:58]}  Nc6 {[%clk 0:02:50]} 4. Nc3 {[%clk 0:02:58]}  e5 {[%clk 0:02:42]} 5. d5 {[%clk 0:02:56]}  Ne7 {[%clk 0:02:42]} 6. e4 {[%clk 0:02:54]}  Ng6 {[%clk 0:02:41]} 7. Be3 {[%clk 0:02:53]}  Bc5 {[%clk 0:02:41]} 8. Bxc5 {[%clk 0:02:51]}  bxc5 {[%clk 0:02:41]} 9. Bd3 {[%clk 0:02:51]}  h5 {[%clk 0:02:25]} 10. Nge2 {[%clk 0:02:50]}  h4 {[%clk 0:02:25]} 11. O-O {[%clk 0:02:50]}  Nh5 {[%clk 0:02:23]} 12. d6 {[%clk 0:02:44]}  cxd6 {[%clk 0:02:03]} 13. Bc2 {[%clk 0:02:41]}  Qb6 {[%clk 0:02:03]} 14. Nb5 {[%clk 0:02:41]}  Ke7 {[%clk 0:02:02]} 15. Nec3 {[%clk 0:02:33]}  Bb7 {[%clk 0:01:59]} 16. Qd2 {[%clk 0:02:23]}  a6 {[%clk 0:01:59]} 17. Qg5+ {[%clk 0:02:19]}  Kf8 {[%clk 0:01:56]} 18. Na4 {[%clk 0:02:08]}  Qc6 {[%clk 0:01:49]} 19. Nbc3 {[%clk 0:02:08]}  Nhf4 {[%clk 0:01:46]} 20. Nd5 {[%clk 0:01:43]}  Ne6 {[%clk 0:01:44]} 21. Qe3 {[%clk 0:01:39]}  Nd4 {[%clk 0:01:44]} 22. Bd1 {[%clk 0:01:38]}  Ne7 {[%clk 0:01:09]} 23. f4 {[%clk 0:01:32]}  Nxd5 {[%clk 0:01:09]} 24. exd5 {[%clk 0:01:32]}  Qc7 {[%clk 0:01:09]} 25. Nc3 {[%clk 0:01:22]}  Re8 {[%clk 0:01:07]} 26. fxe5 {[%clk 0:01:20]}  dxe5 {[%clk 0:01:06]} 27. Ne4 {[%clk 0:01:19]}  d6 {[%clk 0:01:06]} 28. Ba4 {[%clk 0:01:12]}  Re7 {[%clk 0:01:05]} 29. Rf2 {[%clk 0:01:00]}  Bc8 {[%clk 0:00:42]} 30. Raf1 {[%clk 0:00:57]}  Bd7 {[%clk 0:00:42]} 31. Bd1 {[%clk 0:00:41]}  f6 {[%clk 0:00:35]} 32. Nxf6 {[%clk 0:00:38]}  gxf6 {[%clk 0:00:35]} 33. Rxf6+ {[%clk 0:00:39]}  Ke8 {[%clk 0:00:32]} 34. Qh6 {[%clk 0:00:38]}  Kd8 {[%clk 0:00:15]} 35. Qxh8+ {[%clk 0:00:37]}  Be8 {[%clk 0:00:15]} 36. Qxh4 {[%clk 0:00:36]}  Qb6 {[%clk 0:00:15]} 37. Qh6 {[%clk 0:00:30]}  Kc7 {[%clk 0:00:12]} 38. b3 {[%clk 0:00:23]}  Bd7 {[%clk 0:00:12]} 39. Qf8 {[%clk 0:00:18]}  Re8 {[%clk 0:00:12]} 40. Qg7 {[%clk 0:00:18]}  Kd8 {[%clk 0:00:10]} 41. Rf7 {[%clk 0:00:17]}  Qc7 {[%clk 0:00:10]} 42. Bg4 {[%clk 0:00:16]} 1-0


[Site "https://www.chess.com"]

[Event "Titled Tuesday Blitz July 20 2021"]
[White "LEGENYA1998"]
[Black "Dang, Hoang Son"]
[BlackFideId "12402435"]
[WhiteElo "2415"]
[BlackElo "2769"]
[Result "1-0"]
[Round "01"]
[TimeControl "180+1"]
[Date "2021.07.21"]
[WhiteClock "0:00:13"]
[BlackClock "0:00:09"]

1. e4 {[%clk 0:02:55]}  g6 {[%clk 0:02:59]} 2. d4 {[%clk 0:02:51]}  Bg7 {[%clk 0:03:00]} 3. Nc3 {[%clk 0:02:49]}  a6 {[%clk 0:03:00]} 4. a4 {[%clk 0:02:47]}  b6 {[%clk 0:03:00]} 5. f4 {[%clk 0:02:46]}  Bb7 {[%clk 0:03:00]} 6. Nf3 {[%clk 0:02:46]}  Nf6 {[%clk 0:03:00]} 7. Bd3 {[%clk 0:02:46]}  d5 {[%clk 0:03:00]} 8. e5 {[%clk 0:02:45]}  Ne4 {[%clk 0:03:01]} 9. Qe2 {[%clk 0:02:45]}  Nxc3 {[%clk 0:02:42]} 10. bxc3 {[%clk 0:02:46]}  e6 {[%clk 0:02:40]} 11. Ba3 {[%clk 0:02:45]}  Nc6 {[%clk 0:02:33]} 12. O-O {[%clk 0:02:44]}  Ne7 {[%clk 0:02:33]} 13. g4 {[%clk 0:02:32]}  h5 {[%clk 0:02:30]} 14. h3 {[%clk 0:02:30]}  Qd7 {[%clk 0:02:09]} 15. Qg2 {[%clk 0:02:24]}  Bf8 {[%clk 0:02:00]} 16. Ng5 {[%clk 0:02:19]}  hxg4 {[%clk 0:01:56]} 17. hxg4 {[%clk 0:02:17]}  Bh6 {[%clk 0:01:39]} 18. Kf2 {[%clk 0:02:03]}  c5 {[%clk 0:01:31]} 19. dxc5 {[%clk 0:01:58]}  Bxg5 {[%clk 0:01:29]} 20. fxg5 {[%clk 0:01:57]}  d4 {[%clk 0:01:29]} 21. Be4 {[%clk 0:01:54]}  dxc3 {[%clk 0:01:21]} 22. Rad1 {[%clk 0:01:52]}  Bxe4 {[%clk 0:01:13]} 23. Qxe4 {[%clk 0:01:48]}  Nd5 {[%clk 0:01:09]} 24. cxb6 {[%clk 0:01:41]}  Qc6 {[%clk 0:01:03]} 25. Kg3 {[%clk 0:01:32]}  Qxb6 {[%clk 0:00:50]} 26. Rh1 {[%clk 0:01:30]}  O-O-O {[%clk 0:00:48]} 27. Rxh8 {[%clk 0:01:19]}  Rxh8 {[%clk 0:00:49]} 28. Qc4+ {[%clk 0:01:14]}  Kb7 {[%clk 0:00:46]} 29. Bc5 {[%clk 0:01:11]}  Qc6 {[%clk 0:00:38]} 30. Rb1+ {[%clk 0:01:11]}  Ka8 {[%clk 0:00:36]} 31. Rb6 {[%clk 0:00:30]}  Qxb6 {[%clk 0:00:15]} 32. Bxb6 {[%clk 0:00:29]}  Kb7 {[%clk 0:00:16]} 33. Bd4 {[%clk 0:00:24]}  Rc8 {[%clk 0:00:16]} 34. Qb3+ {[%clk 0:00:25]}  Kc6 {[%clk 0:00:16]} 35. Bxc3 {[%clk 0:00:23]}  Kd7 {[%clk 0:00:14]} 36. Bd4 {[%clk 0:00:23]}  Ke8 {[%clk 0:00:13]} 37. c4 {[%clk 0:00:23]}  Ne7 {[%clk 0:00:12]} 38. c5 {[%clk 0:00:18]}  Nc6 {[%clk 0:00:12]} 39. Qb7 {[%clk 0:00:18]}  Ne7 {[%clk 0:00:10]} 40. Bf2 {[%clk 0:00:15]}  Rc6 {[%clk 0:00:10]} 41. Qb8+ {[%clk 0:00:14]}  Kd7 {[%clk 0:00:10]} 42. Qb7+ {[%clk 0:00:14]}  Kd8 {[%clk 0:00:10]} 43. Be1 {[%clk 0:00:14]}  Ke8 {[%clk 0:00:09]} 44. Ba5 {[%clk 0:00:14]}  Rxc5 {[%clk 0:00:09]} 45. Bb4 {[%clk 0:00:13]} 1-0


[Site "https://www.chess.com"]